bitfinex/quotes_SOLUSD_20250313
["timestamp","ask_amount","ask_price","bid_price","bid_amount"]
[1741872562292,0.063,126.61,126.56,37.39718112]
[1741872562463,37.31801955,126.61,126.56,37.39718112]
[1741872563082,45.15381955,126.6,126.55,0.14216157]
[1741872563282,7.8988,126.6,126.55,45.65718112]
[1741872563478,45.21641955,126.61,126.56,37.25501955]
[1741872563982,7.9614,126.61,126.56,37.25501955]
[1741872564783,45.21641955,126.61,126.56,37.25501955]
[1741872564986,0.063,126.61,126.59,37.25501955]
[1741872565281,0.063,126.61,126.6,37.25501955]
[1741872565459,0.063,126.61,126.58,37.39718112]
[1741872565667,0.063,126.61,126.58,0.14216157]
[1741872565869,0.063,126.61,126.58,37.39718112]
[1741872566602,0.063,126.61,126.59,37.25501955]
[1741872566885,0.063,126.61,126.57,37.39718112]
[1741872567058,0.063,126.61,126.58,37.25501955]
[1741872567893,0.063,126.61,126.59,37.25501955]
[1741872568055,0.063,126.61,126.6,37.25501955]
[1741872568254,0.063,126.61,126.6,64.44899155]
[1741872568456,0.063,126.65,126.61,0.28432314]
[1741872568684,0.063,126.65,126.64,37.39718112]
[1741872569969,0.063,126.65,126.64,37.53934269]
[1741872570361,0.063,126.65,126.64,0.14216157]
[1741872570667,0.063,126.65,126.63,37.25501955]
[1741872572966,0.063,126.65,126.64,56.18899155]
[1741872574869,0.063,126.65,126.64,64.08529155]
[1741872577990,0.063,126.65,126.64,114.08529155]
[1741872578193,0.063,126.65,126.64,426.08529155]
[1741872579188,0.063,126.65,126.64,506.92229155]
[1741872580586,0.063,126.65,126.64,194.92229155]
[1741872581986,1.5448,126.73,126.66,50.0]
[1741872582189,6.7225,126.74,126.72,37.25501955]
[1741872582190,0.063,126.74,126.72,37.25501955]
[1741872583489,0.063,126.74,126.73,0.14216157]
[1741872583694,0.063,126.74,126.73,45.43004269]
[1741872584080,0.063,126.74,126.73,37.53934269]
[1741872584684,0.063,126.74,126.73,37.25501955]
[1741872584890,37.31801955,126.74,126.69,37.39718112]
[1741872585395,0.063,126.74,126.7,37.25501955]
[1741872585596,0.063,126.74,126.7,0.14216157]
[1741872585893,7.9531,126.74,126.7,0.14216157]
[1741872586091,37.25501955,126.73,126.68,37.39718112]
[1741872586300,27.6785,126.74,126.68,37.39718112]
[1741872586592,37.25501955,126.73,126.68,37.39718112]
[1741872587194,64.93351955,126.74,126.68,37.39718112]
[1741872587387,45.20811955,126.74,126.68,37.39718112]
[1741872587693,37.25501955,126.72,126.66,0.28432314]
[1741872587913,7.892,126.71,126.66,37.53934269]
[1741872588198,7.892,126.71,126.67,37.25501955]
[1741872588391,7.8915,126.72,126.68,37.25501955]
[1741872589392,45.14651955,126.72,126.66,8.17942314]
[1741872589894,7.8915,126.72,126.68,0.14216157]
[1741872590694,27.62,126.72,126.66,0.14216157]
[1741872590897,37.25501955,126.71,126.66,37.39718112]
[1741872591204,0.063,126.71,126.68,0.14216157]
[1741872592183,0.063,126.71,126.68,37.39718112]
[1741872592602,0.063,126.71,126.69,37.25501955]
[1741872592775,0.063,126.71,126.68,37.39718112]
[1741872592970,0.063,126.71,126.7,0.14216157]
[1741872593195,0.063,126.71,126.7,37.39718112]
[1741872593893,0.063,126.71,126.69,0.28432314]
[1741872594101,0.063,126.71,126.69,37.53934269]
[1741872594298,0.063,126.71,126.69,0.14216157]
[1741872594604,0.063,126.71,126.69,37.39718112]
[1741872595196,0.063,126.71,126.7,37.39718112]
[1741872596392,0.063,126.71,126.69,45.29038112]
[1741872596595,0.063,126.71,126.7,37.39718112]
[1741872596994,0.063,126.71,126.7,56.18899155]
[1741872597579,0.063,126.74,126.71,0.28432314]
[1741872597880,0.063,126.74,126.73,37.39718112]
[1741872598209,0.063,126.74,126.73,37.25501955]
[1741872598389,0.063,126.74,126.73,37.39718112]
[1741872598592,0.063,126.74,126.71,37.39718112]
[1741872598777,0.063,126.74,126.71,0.14216157]
[1741872598978,0.063,126.74,126.71,37.39718112]
[1741872599277,0.063,126.74,126.71,0.14216157]
[1741872599475,0.063,126.74,126.7,37.25501955]
[1741872600288,0.063,126.74,126.71,37.53934269]
[1741872600603,0.063,126.74,126.68,0.14216157]
[1741872600802,37.25501955,126.72,126.67,0.14216157]
[1741872601006,37.25501955,126.7,126.65,0.03]
[1741872601310,37.25501955,126.69,126.65,0.03]
[1741872601475,37.25501955,126.68,126.65,0.03]
[1741872601679,37.25501955,126.67,126.65,0.03]
[1741872601906,37.25501955,126.66,126.65,0.03]
[1741872602099,43.67571955,126.66,126.65,0.03]
[1741872602303,6.4207,126.66,126.65,0.03]
[1741872602500,45.19251955,126.66,126.61,0.03]
[1741872602696,37.25501955,126.62,126.61,0.03]
[1741872603088,37.25501955,126.63,126.61,0.03]
[1741872603301,37.25501955,126.64,126.61,0.03]
[1741872603491,45.15261955,126.62,126.61,0.03]
[1741872603807,45.15261955,126.62,126.52,37.28501955]
[1741872603808,6.1814,126.6,126.52,37.28501955]
[1741872604113,37.25501955,126.58,126.52,37.28501955]
[1741872604285,37.25501955,126.56,126.52,0.03]
[1741872604481,18.64964886,126.59,126.53,37.25501955]
[1741872604482,37.25501955,126.59,126.53,37.25501955]
[1741872604683,37.25501955,126.59,126.54,0.14216157]
[1741872604883,37.25501955,126.59,126.54,37.39718112]
[1741872605105,37.25501955,126.56,126.52,0.03]
[1741872605484,37.25501955,126.53,126.52,0.03]
[1741872605693,51.77941955,126.53,126.48,0.03]
[1741872605894,37.25501955,126.5,126.48,0.03]
[1741872606182,37.25501955,126.52,126.48,0.03]
[1741872606407,37.25501955,126.51,126.48,0.03]
[1741872606610,6.6212,126.53,126.48,0.03]
[1741872606812,6.6212,126.53,126.48,45.19131955]
[1741872607022,6.151,126.57,126.5,0.14216157]
[1741872607190,1.5448,126.59,126.55,37.25501955]
[1741872607399,9.4443,126.59,126.53,8.24]
[1741872607607,37.25501955,126.56,126.53,8.24]
[1741872607907,1.5448,126.59,126.54,18.933972]
[1741872608115,1.5448,126.59,126.56,37.25501955]
[1741872608297,1.5448,126.59,126.55,37.25501955]
[1741872608493,1.5448,126.59,126.53,37.25501955]
[1741872608494,38.79981955,126.59,126.53,37.25501955]
[1741872608804,1.5448,126.59,126.55,37.25501955]
[1741872609009,1.5448,126.59,126.54,37.25501955]
[1741872609305,37.25501955,126.56,126.51,37.25501955]
[1741872609821,37.25501955,126.55,126.49,8.24]
[1741872609989,37.25501955,126.55,126.5,37.25501955]
[1741872610192,37.25501955,126.56,126.5,37.25501955]
[1741872610391,1.5448,126.59,126.54,37.25501955]
[1741872610597,57.25501955,126.58,126.53,8.24]
[1741872610792,20.0,126.58,126.54,37.25501955]
[1741872611298,38.79981955,126.59,126.54,37.25501955]
[1741872611502,1.5448,126.59,126.54,37.25501955]
[1741872611811,1.5448,126.59,126.55,37.25501955]
[1741872611997,1.5448,126.59,126.54,45.15741955]
[1741872612198,1.5448,126.59,126.55,37.25501955]
[1741872612400,46.69951955,126.59,126.54,37.39718112]
[1741872612608,46.69951955,126.59,126.53,45.49501955]
[1741872612816,37.25501955,126.57,126.53,8.24]
[1741872612993,37.25501955,126.54,126.48,0.03]
[1741872613198,37.25501955,126.5,126.48,0.03]
[1741872613423,37.25501955,126.49,126.4,19.7771]
[1741872613591,37.25501955,126.46,126.41,37.25501955]
[1741872613791,1.5871,126.51,126.43,37.39718112]
[1741872614017,57.25501955,126.47,126.42,37.25501955]
[1741872614322,57.25501955,126.47,126.42,37.28501955]
[1741872614496,37.25501955,126.47,126.42,37.28501955]
[1741872614893,37.25501955,126.48,126.42,37.28501955]
[1741872615092,37.25501955,126.46,126.42,0.03]
[1741872615521,27.6681,126.5,126.42,37.42718112]
[1741872615522,37.25501955,126.47,126.42,37.42718112]
[1741872615721,20.0,126.47,126.43,37.25501955]
[1741872615924,37.25501955,126.49,126.43,37.25501955]
[1741872616117,37.25501955,126.48,126.43,37.25501955]
[1741872616296,56.0072616,126.48,126.43,56.0072616]
[1741872616616,56.0072616,126.46,126.42,0.03]
[1741872616909,56.0072616,126.48,126.42,63.9472616]
[1741872617096,56.0072616,126.48,126.43,0.28432314]
[1741872617097,20.0,126.48,126.43,0.28432314]
[1741872617296,20.0,126.5,126.46,56.0072616]
[1741872617505,20.0,126.5,126.44,56.0072616]
[1741872617706,20.0,126.5,126.46,56.0072616]
[1741872617942,20.0,126.48,126.42,0.03]
[1741872618235,57.5943616,126.51,126.43,0.28432314]
[1741872618396,1.5871,126.51,126.47,56.0072616]
[1741872618595,1.5871,126.51,126.48,56.0072616]
[1741872618904,78.7044616,126.54,126.45,0.28432314]
[1741872618905,56.0072616,126.54,126.49,64.2672616]
[1741872619228,1.6578,126.55,126.49,64.2672616]
[1741872619408,65.5671616,126.55,126.49,64.2672616]
[1741872619893,74.65691046,126.54,126.49,64.2672616]
[1741872620094,56.0072616,126.54,126.49,8.26]
[1741872620318,56.0072616,126.53,126.49,8.26]
[1741872621097,1.6578,126.55,126.5,56.0072616]
[1741872621321,56.0072616,126.53,126.49,8.26]
[1741872621518,56.0072616,126.51,126.46,56.0072616]
[1741872621817,56.0072616,126.49,126.45,8.24]
[1741872622019,26.55474886,126.5,126.42,0.03]
[1741872622221,56.0072616,126.46,126.42,0.03]
[1741872622395,57.6390616,126.47,126.42,0.03]
[1741872622598,56.0072616,126.46,126.42,0.03]
[1741872623417,76.0072616,126.46,126.42,0.03]
[1741872623625,56.0072616,126.45,126.42,0.03]
[1741872623810,7.9088,126.44,126.42,0.03]
[1741872624204,56.0072616,126.45,126.42,0.03]
[1741872624406,63.9156616,126.45,126.42,0.03]
[1741872625009,1.6318,126.47,126.44,56.0072616]
[1741872625208,1.6318,126.47,126.45,56.0072616]
[1741872625409,76.0072616,126.46,126.42,0.03]
[1741872625614,20.0,126.46,126.42,0.03]
[1741872626226,20.0,126.46,126.42,56.0372616]
[1741872626419,27.9076,126.46,126.42,0.03]
[1741872626627,56.0072616,126.45,126.42,0.03]
[1741872627228,83.9148616,126.46,126.42,0.03]
[1741872627521,20.0,126.43,126.42,0.03]
[1741872627728,74.65691046,126.43,126.42,0.03]
[1741872628022,63.9167616,126.43,126.42,0.03]
[1741872628229,82.56641046,126.43,126.42,0.03]
[1741872628408,38.79181043,126.4,126.39,0.03]
[1741872628609,96.29011046,126.4,126.39,0.03]
[1741872628835,21.6332,126.4,126.39,0.03]
[1741872629027,0.14216157,126.42,126.39,0.03]
[1741872629329,74.79907203,126.4,126.39,0.03]
[1741872629516,101.39181043,126.39,126.38,0.03]
[1741872629925,165.31107203,126.39,126.38,0.03]
[1741872630229,82.6,126.39,126.38,0.03]
[1741872630448,76.0072616,126.39,126.38,0.03]
[1741872630634,20.0,126.35,126.34,0.063]
[1741872630938,94.79907203,126.35,126.34,0.063]
[1741872631229,150.9484952,126.35,126.34,0.063]
[1741872631527,102.033972,126.34,126.32,0.063]
[1741872631715,0.14216157,126.32,126.31,0.063]
[1741872631923,91.17547203,126.32,126.31,0.063]
[1741872632230,38.64964886,126.27,126.26,0.03]
[1741872632534,94.65691046,126.27,126.26,0.03]
[1741872632744,0.14216157,126.28,126.26,0.03]
[1741872632745,56.0072616,126.28,126.26,0.03]
[1741872632915,56.0072616,126.27,126.26,0.03]
[1741872633118,74.65691046,126.28,126.26,0.03]
[1741872633318,18.64964886,126.28,126.26,0.03]
[1741872633626,74.79907203,126.27,126.26,0.03]
[1741872633824,20.0,126.24,126.22,1.7685896]
[1741872634031,76.0072616,126.24,126.22,1.7685896]
[1741872634410,56.0072616,126.23,126.22,1.7685896]
[1741872634728,0.14216157,126.22,126.21,0.03]
[1741872634928,20.0,126.19,126.12,63.4661616]
[1741872635125,20.0,126.19,126.11,56.0072616]
[1741872635326,20.0,126.15,126.08,7.9314]
[1741872635530,56.0072616,126.11,126.06,63.9399616]
[1741872635738,56.0072616,126.13,126.08,56.0072616]
[1741872635909,64.8072616,126.14,126.08,63.9384616]
[1741872636231,56.0072616,126.09,126.02,80.837]
[1741872636531,56.0072616,126.09,126.04,56.0072616]
[1741872636738,82.6,126.13,126.01,19.8396]
[1741872636739,138.6072616,126.13,126.07,56.0072616]
[1741872636918,82.6,126.13,126.08,56.0072616]
[1741872637231,56.0072616,126.14,126.08,56.0072616]
[1741872637443,18.64964886,126.18,126.13,56.0072616]
[1741872637811,82.6,126.22,126.15,0.14216157]
[1741872638013,273.4066616,126.28,126.12,235.959]
[1741872638014,282.3466616,126.28,126.12,235.959]
[1741872638223,0.5,126.22,126.06,7.9327]
[1741872638425,39.433972,126.18,126.03,19.8357]
[1741872638624,20.0,126.1,126.01,7.9358]
[1741872638818,20.0,126.1,126.02,0.14216157]
[1741872639029,20.0,126.1,126.02,0.28432314]
[1741872639222,56.0072616,126.09,126.02,0.14216157]
[1741872639531,56.0072616,126.07,126.02,56.0072616]
[1741872639756,56.0072616,126.08,126.03,56.0072616]
[1741872640050,74.65691046,126.09,126.03,63.9415616]
[1741872640414,56.0072616,126.08,125.98,27.7821]
[1741872640627,56.0072616,126.1,126.04,56.0072616]
[1741872640829,18.79181043,126.11,126.05,56.0072616]
[1741872640830,56.0072616,126.11,126.05,56.0072616]
[1741872641018,74.65691046,126.1,126.05,56.0072616]
[1741872641234,74.65691046,126.11,126.04,9.4]
[1741872641415,74.65691046,126.11,126.05,56.0072616]
[1741872641620,18.64964886,126.12,126.07,56.0072616]
[1741872641816,82.74216157,126.16,126.09,56.0072616]
[1741872641817,56.0072616,126.14,126.09,56.0072616]
[1741872642027,56.0072616,126.15,126.1,56.0072616]
[1741872642241,56.0072616,126.18,126.13,56.0072616]
[1741872642415,56.0072616,126.19,126.14,56.0072616]
[1741872642617,56.0072616,126.19,126.13,56.0072616]
[1741872642817,56.0072616,126.18,126.12,56.0072616]
[1741872643013,56.0072616,126.18,126.13,56.0072616]
[1741872643227,82.6,126.2,126.13,56.0072616]
[1741872643520,56.0072616,126.18,126.12,56.0072616]
[1741872643732,56.0072616,126.13,126.09,9.52]
[1741872644041,56.0072616,126.13,126.08,56.0072616]
[1741872644233,56.0072616,126.12,126.05,17.63536157]
[1741872644434,20.0,126.14,126.06,18.933972]
[1741872644618,20.0,126.14,126.1,56.0072616]
[1741872644824,56.0072616,126.13,126.06,81.12132314]
[1741872645134,94.65691046,126.14,126.08,56.0072616]
[1741872645338,56.0072616,126.11,126.06,56.0072616]
[1741872645642,76.0072616,126.1,126.05,9.62]
[1741872645844,7.9314,126.08,126.01,56.0072616]
[1741872646015,56.0072616,126.07,126.01,56.0072616]
[1741872646536,56.0072616,126.06,126.0,7.9362]
[1741872646743,56.0072616,126.06,126.01,56.0072616]
[1741872647045,56.0072616,126.06,125.98,100.82326157]
[1741872647046,56.0072616,126.05,125.98,7.9372]
[1741872647239,56.0072616,126.04,125.98,56.0072616]
[1741872647537,74.65691046,126.05,125.99,56.0072616]
[1741872647837,56.0072616,126.06,126.0,63.9435616]
[1741872648031,56.0072616,126.06,126.01,56.0072616]
[1741872648228,56.0072616,126.06,125.98,0.28432314]
[1741872648229,18.64964886,126.03,125.98,56.0072616]
[1741872648441,18.64964886,126.02,125.97,56.0072616]
[1741872648743,18.64964886,126.02,125.96,58.8789354]
[1741872648744,74.65691046,126.02,125.96,58.8789354]
[1741872648944,120.0047,126.06,125.98,56.0072616]
[1741872648945,56.0072616,126.04,125.98,56.0072616]
[1741872649144,56.0072616,126.03,125.98,56.0072616]
[1741872649317,56.0072616,126.03,125.97,56.0072616]
[1741872649520,56.0072616,126.03,125.96,2.8716738]
[1741872649735,56.0072616,126.03,125.98,56.0072616]
[1741872649935,63.9412616,126.04,125.98,56.0072616]
[1741872650149,56.0072616,126.01,125.96,58.8789354]
[1741872650318,56.0072616,126.01,125.96,2.8716738]
[1741872650319,74.65691046,125.99,125.96,2.8716738]
[1741872650525,56.0072616,125.98,125.96,2.8716738]
[1741872651134,62.3439616,126.0,125.96,2.8716738]
[1741872651330,6.3367,126.0,125.96,2.8716738]
[1741872651627,18.64964886,126.0,125.96,58.8789354]
[1741872651837,56.0072616,126.02,125.96,58.8789354]
[1741872652150,56.0072616,126.0,125.96,2.8716738]
[1741872652443,20.0,125.97,125.96,2.8716738]
[1741872652635,94.65691046,125.97,125.96,2.8716738]
[1741872652818,20.0,125.97,125.96,2.8716738]
[1741872653347,62.1520616,126.04,125.97,0.14216157]
[1741872653641,6.1448,126.04,125.99,56.0072616]
[1741872653825,1.639,126.06,126.02,56.0072616]
[1741872654030,7.9304,126.1,126.05,56.0072616]
[1741872654345,82.6,126.11,126.07,56.0072616]
[1741872654725,0.063,126.12,126.09,56.0072616]
[1741872654929,0.063,126.12,126.1,56.0072616]
[1741872655139,20.063,126.12,126.08,65.6072616]
[1741872655343,56.0072616,126.1,126.05,56.0072616]
[1741872655528,56.0072616,126.1,126.01,218.16626157]
[1741872655529,56.0072616,126.08,126.02,56.0072616]
[1741872655726,18.64964886,126.06,126.01,56.0072616]
[1741872655951,18.64964886,126.07,126.0,65.6472616]
[1741872656151,18.64964886,126.08,126.02,56.0072616]
[1741872656446,18.64964886,126.09,126.03,56.0072616]
[1741872656753,82.6,126.11,126.04,56.0072616]
[1741872657052,18.64964886,126.11,126.06,56.0072616]
[1741872657229,0.063,126.12,126.07,0.14216157]
[1741872657430,0.063,126.12,126.07,0.28432314]
[1741872657740,0.063,126.12,126.06,9.66]
[1741872657942,0.063,126.12,126.08,56.0072616]
[1741872658126,0.063,126.12,126.08,63.9385616]
[1741872658322,0.063,126.12,126.09,56.0072616]
[1741872658646,0.063,126.12,126.11,56.0072616]
[1741872658842,0.063,126.12,126.09,56.0072616]
[1741872659043,0.063,126.12,126.1,56.0072616]
[1741872659347,0.063,126.12,126.09,56.0072616]
[1741872659548,56.0702616,126.12,126.06,329.5925]
[1741872659754,56.0702616,126.12,126.07,56.0072616]
[1741872659958,63.9370616,126.11,126.06,65.6672616]
[1741872660247,20.0,126.08,126.01,56.0072616]
[1741872660454,56.0072616,126.04,125.98,56.0072616]
[1741872660749,24.76914886,126.07,125.97,7.9382]
[1741872660941,24.76914886,126.07,126.0,56.0072616]
[1741872661247,56.0072616,126.05,126.0,56.0072616]
[1741872661453,80.77641046,126.07,126.01,56.0072616]
[1741872661628,6.1195,126.07,126.02,56.0072616]
[1741872661834,56.0072616,126.1,126.04,56.0072616]
[1741872662342,8.0095,126.12,126.06,56.0072616]
[1741872662543,56.0072616,126.11,126.04,7.9337]
[1741872662745,56.0072616,126.1,126.04,56.0072616]
[1741872662945,56.0072616,126.09,126.04,56.0072616]
[1741872663263,0.063,126.12,126.07,56.0072616]
[1741872663551,0.063,126.12,126.07,65.7472616]
[1741872664133,0.063,126.12,126.08,56.0072616]
[1741872664366,0.063,126.12,126.07,17.672]
[1741872664538,0.063,126.12,126.11,56.0072616]
[1741872664859,0.0001,126.12,126.11,56.14942317]
[1741872665367,0.0001,126.12,126.11,155.7782336]
[1741872665673,0.063,126.25,126.17,0.28432314]
[1741872665968,0.063,126.25,126.23,56.0072616]
[1741872666331,0.063,126.25,126.24,56.0072616]
[1741872666754,0.063,126.25,126.24,74.9412336]
[1741872666932,0.063,126.25,126.24,56.29158474]
[1741872667133,0.063,126.25,126.24,74.9412336]
[1741872667335,0.063,126.42,126.28,20.28432314]
[1741872667559,63.9179616,126.41,126.36,56.0072616]
[1741872667863,56.0072616,126.41,126.36,56.0072616]
[1741872668159,56.0072616,126.38,126.28,0.28432314]
[1741872668366,56.0072616,126.36,126.31,56.0072616]
[1741872668530,7.9107,126.41,126.32,56.0072616]
[1741872668735,9.843,126.42,126.37,56.0072616]
[1741872668736,56.0702616,126.42,126.37,56.0072616]
[1741872668962,0.063,126.42,126.36,0.28432314]
[1741872669164,0.063,126.42,126.41,56.0072616]
[1741872669342,0.063,126.42,126.4,56.0072616]
[1741872669533,0.063,126.42,126.41,56.0072616]
[1741872669742,0.063,126.42,126.4,56.0072616]
[1741872670357,0.063,126.42,126.38,56.0072616]
[1741872670565,56.0702616,126.42,126.37,56.0072616]
[1741872670763,56.0072616,126.41,126.36,56.0072616]
[1741872670957,0.063,126.42,126.32,56.0072616]
[1741872670958,56.0072616,126.37,126.32,56.0072616]
[1741872671159,28.47217078,126.36,126.31,105.0127534]
[1741872671352,28.47217078,126.36,126.31,65.8272616]
[1741872671559,76.0072616,126.39,126.34,56.0072616]
[1741872671867,56.0072616,126.41,126.36,56.0072616]
[1741872672071,0.063,126.42,126.39,56.0072616]
[1741872672360,0.063,126.42,126.41,56.0072616]
[1741872672571,8.88116624,126.47,126.41,56.0072616]
[1741872672864,76.0072616,126.46,126.41,65.8272616]
[1741872673064,0.063,126.49,126.39,56.0072616]
[1741872673065,56.0072616,126.45,126.39,56.0072616]
[1741872673253,0.063,126.49,126.41,56.0072616]
[1741872673449,56.0072616,126.46,126.4,68.01255375]
[1741872673661,56.0072616,126.44,126.4,12.00529215]
[1741872673866,56.0072616,126.43,126.4,12.00529215]
[1741872674038,0.063,126.42,126.41,56.0072616]
[1741872674239,0.063,126.42,126.41,210.2412336]
[1741872674440,0.063,126.49,126.45,18.933972]
[1741872674669,0.063,126.49,126.48,56.29158474]
[1741872674964,0.063,126.49,126.48,210.2412336]
[1741872675165,63.9091616,126.56,126.49,0.28432314]
[1741872675355,56.0072616,126.55,126.5,56.0072616]
[1741872675550,0.063,126.55,126.51,65.8672616]
[1741872675756,0.063,126.55,126.51,9.86]
[1741872675757,20.0,126.54,126.51,9.86]
[1741872675961,0.063,126.55,126.51,9.86]
[1741872676468,0.063,126.55,126.54,56.0072616]
[1741872676843,0.063,126.55,126.51,457.16]
[1741872677046,0.063,126.55,126.52,56.0072616]
[1741872677352,0.063,126.55,126.54,56.29158474]
[1741872677557,0.063,126.55,126.54,210.2412336]
[1741872678080,0.063,126.55,126.54,274.1510952]
[1741872678376,0.063,126.63,126.58,0.14216157]
[1741872678548,0.063,126.63,126.59,65.8672616]
[1741872678871,56.0702616,126.63,126.59,9.86]
[1741872679174,0.063,126.63,126.59,56.0072616]
[1741872679548,56.0702616,126.63,126.58,56.0072616]
[1741872679881,56.0072616,126.62,126.57,56.0072616]
[1741872680178,56.0072616,126.62,126.58,56.0072616]
[1741872680179,7.8976,126.62,126.58,56.0072616]
[1741872680361,7.9601,126.63,126.58,56.0072616]
[1741872680664,7.9601,126.63,126.59,56.0072616]
[1741872680872,56.0072616,126.62,126.57,56.0072616]
[1741872681049,83.7098616,126.63,126.57,56.0072616]
[1741872681251,56.0072616,126.6,126.53,80.837]
[1741872681575,20.0,126.6,126.57,56.0072616]
[1741872681874,27.7026,126.63,126.57,56.0072616]
[1741872682167,0.063,126.63,126.62,56.0072616]
[1741872682360,0.063,126.63,126.62,65.9072616]
[1741872682563,0.063,126.63,126.62,66.04942317]
[1741872682771,0.063,126.63,126.62,65.9072616]
[1741872683156,0.063,126.63,126.62,9.9]
[1741872683481,0.063,126.63,126.59,56.0072616]
[1741872683655,0.063,126.63,126.6,56.0072616]
[1741872684277,0.063,126.63,126.59,56.0072616]
[1741872684483,76.0702616,126.63,126.57,56.0072616]
[1741872684981,56.0072616,126.6,126.55,80.837]
[1741872685145,56.0072616,126.59,126.53,56.29158474]
[1741872685348,56.0072616,126.59,126.53,56.0072616]
[1741872685744,20.0,126.62,126.54,56.0072616]
[1741872685949,20.0,126.62,126.55,56.0072616]
[1741872685950,56.0072616,126.6,126.55,56.0072616]
[1741872686170,56.0072616,126.61,126.55,56.0072616]
[1741872686371,7.8984,126.61,126.57,56.0072616]
[1741872686579,0.063,126.63,126.59,56.0072616]
[1741872686789,0.063,126.63,126.62,56.0072616]
[1741872687069,0.063,126.63,126.62,56.29158474]
[1741872687267,0.063,126.63,126.62,291.0782336]
[1741872687974,0.063,126.63,126.62,347.0854952]
[1741872688150,0.063,126.63,126.62,291.0782336]
[1741872688347,0.063,126.63,126.62,298.9758336]
[1741872688654,0.063,126.65,126.64,68.933972]
[1741872688862,0.063,126.65,126.64,300.8952336]
[1741872689052,0.063,126.72,126.64,244.887972]
[1741872689258,0.063,126.72,126.71,56.14942317]
[1741872689458,0.063,126.72,126.71,301.0352336]
[1741872689662,0.063,126.72,126.71,147.08558474]
[1741872689859,0.063,126.72,126.71,146.94342317]
[1741872690056,0.063,126.72,126.7,66.0272616]
[1741872690673,0.063,126.72,126.69,135.3]
[1741872690959,76.0702616,126.72,126.67,10.02]
[1741872691183,56.0072616,126.71,126.67,10.02]
[1741872691473,20.063,126.72,126.67,66.0272616]
[1741872691474,0.063,126.72,126.67,66.0272616]
[1741872691680,20.0,126.71,126.69,56.0072616]
[1741872691878,20.0,126.71,126.68,56.0072616]
[1741872692069,20.0,126.71,126.67,66.0272616]
[1741872692376,0.063,126.72,126.67,10.02]
[1741872692562,56.0072616,126.71,126.66,56.0072616]
[1741872692884,56.0072616,126.68,126.63,56.0072616]
[1741872693184,56.0072616,126.69,126.64,56.0072616]
[1741872693379,56.0072616,126.69,126.62,0.28432314]
[1741872693380,56.0072616,126.67,126.62,56.0072616]
[1741872693686,56.0072616,126.65,126.61,10.02]
[1741872693891,20.0,126.67,126.61,10.02]
[1741872694184,56.0072616,126.65,126.61,10.02]
[1741872694394,7.8963,126.64,126.61,10.02]
[1741872694555,63.9035616,126.64,126.61,10.02]
[1741872694760,56.0072616,126.63,126.57,56.0072616]
[1741872694957,27.6372,126.64,126.56,10.02]
[1741872695156,56.0072616,126.63,126.56,226.094]
[1741872695384,63.9035616,126.64,126.59,56.0072616]
[1741872695687,7.8951,126.66,126.59,0.28432314]
[1741872696161,7.8951,126.66,126.58,216.074]
[1741872696483,27.8946,126.67,126.59,0.28432314]
[1741872696684,56.0072616,126.65,126.56,66.0272616]
[1741872696911,56.0072616,126.65,126.59,56.0072616]
[1741872697064,27.8946,126.67,126.62,56.0072616]
[1741872697265,1.5981,126.73,126.67,0.14216157]
[1741872697503,6.0818,126.75,126.65,0.28432314]
[1741872697504,7.9533,126.74,126.65,0.28432314]
[1741872697693,56.0702616,126.74,126.65,447.58432314]
[1741872697868,20.063,126.72,126.67,56.0072616]
[1741872698063,0.063,126.72,126.7,56.0072616]
[1741872698286,0.063,126.72,126.71,56.0072616]
[1741872698692,0.063,126.72,126.68,66.0672616]
[1741872698892,76.0702616,126.72,126.65,135.44216157]
[1741872699194,20.0,126.71,126.69,56.0072616]
[1741872699382,0.063,126.72,126.7,56.0072616]
[1741872699585,0.063,126.72,126.66,235.007972]
[1741872699586,0.063,126.72,126.71,66.22942317]
[1741872699766,0.063,126.72,126.71,66.0872616]
[1741872699967,0.063,126.72,126.71,10.08]